[Event "*** SCC Grand Prix: Titled Tuesday Blitz"]
[Site "Chess.com"]
[Date "2020.10.06"]
[Round "2"]
[White "QuintilianoR"]
[Black "Parhamov"]
[Result "0-1"]
[WhiteElo "2587"]
[BlackElo "2966"]
[TimeControl "180+1"]
[EndTime "10:19:23 PDT"]
[Termination "Parhamov won on time"]

1. d4 {[%clk 0:03:00.9]} 1... Nf6 {[%clk 0:02:59.1]} 2. c4 {[%clk 0:03:00.5]}
2... g6 {[%clk 0:02:59.2]} 3. Nf3 {[%clk 0:03:00.8]} 3... Bg7 {[%clk 0:02:59.1]}
4. Nc3 {[%clk 0:03:01.3]} 4... d5 {[%clk 0:02:59]} 5. h4 {[%clk 0:02:59.4]} 5...
c5 {[%clk 0:02:57.8]} 6. dxc5 {[%clk 0:02:47.4]} 6... Qa5 {[%clk 0:02:56.6]} 7.
cxd5 {[%clk 0:02:07.4]} 7... Nbd7 {[%clk 0:02:55.1]} 8. g3 {[%clk 0:01:51.6]}
8... Ne4 {[%clk 0:02:53.8]} 9. Bd2 {[%clk 0:01:48.1]} 9... Nxd2 {[%clk
0:02:50.4]} 10. Nxd2 {[%clk 0:01:41.1]} 10... Nxc5 {[%clk 0:02:49.4]} 11. Bg2
{[%clk 0:01:39.9]} 11... Bg4 {[%clk 0:02:45.5]} 12. O-O {[%clk 0:01:35]} 12...
O-O {[%clk 0:02:45.4]} 13. Nb3 {[%clk 0:01:30.4]} 13... Qb4 {[%clk 0:02:41.4]}
14. Nxc5 {[%clk 0:01:27.7]} 14... Qxc5 {[%clk 0:02:40.9]} 15. Rc1 {[%clk
0:01:27.6]} 15... Qb4 {[%clk 0:02:37.7]} 16. Qb3 {[%clk 0:01:21.6]} 16... a5
{[%clk 0:02:38]} 17. Rfd1 {[%clk 0:01:07]} 17... Rac8 {[%clk 0:02:26.2]} 18. Qc2
{[%clk 0:00:48.3]} 18... Bh6 {[%clk 0:02:06]} 19. Rb1 {[%clk 0:00:46.1]} 19...
b5 {[%clk 0:02:06.1]} 20. Qd3 {[%clk 0:00:42]} 20... Bd7 {[%clk 0:02:01]} 21. d6
{[%clk 0:00:36.6]} 21... Qxd6 {[%clk 0:01:54.8]} 22. Qxd6 {[%clk 0:00:36.1]}
22... exd6 {[%clk 0:01:55.7]} 23. Rxd6 {[%clk 0:00:34.3]} 23... Be6 {[%clk
0:01:56.1]} 24. Nxb5 {[%clk 0:00:33.1]} 24... Bxa2 {[%clk 0:01:50.4]} 25. Ra1
{[%clk 0:00:33.3]} 25... Rc1+ {[%clk 0:01:50.5]} 26. Rxc1 {[%clk 0:00:32]} 26...
Bxc1 {[%clk 0:01:51.4]} 27. Ra6 {[%clk 0:00:32.1]} 27... Bxb2 {[%clk 0:01:46.4]}
28. Rxa5 {[%clk 0:00:31.6]} 28... Bc4 {[%clk 0:01:46.9]} 29. Nd6 {[%clk
0:00:28.5]} 29... Bxe2 {[%clk 0:01:43.3]} 30. Bd5 {[%clk 0:00:27.6]} 30... Bd4
{[%clk 0:01:43.5]} 31. Ra8 {[%clk 0:00:21.4]} 31... Rxa8 {[%clk 0:01:38.6]} 32.
Bxa8 {[%clk 0:00:22.3]} 32... Be5 {[%clk 0:01:38.9]} 33. Ne4 {[%clk 0:00:21.3]}
33... Bc4 {[%clk 0:01:26.9]} 34. Kg2 {[%clk 0:00:20.4]} 34... Kg7 {[%clk
0:01:23.9]} 35. Nd2 {[%clk 0:00:20.5]} 35... Be6 {[%clk 0:01:19.4]} 36. Nf3
{[%clk 0:00:20.8]} 36... Bc3 {[%clk 0:01:17]} 37. Ng5 {[%clk 0:00:21.2]} 37...
Bb3 {[%clk 0:01:14.5]} 38. Bf3 {[%clk 0:00:20.6]} 38... f5 {[%clk 0:01:11.6]}
39. Nh3 {[%clk 0:00:20.1]} 39... h6 {[%clk 0:01:10.5]} 40. Nf4 {[%clk
0:00:19.9]} 40... Ba4 {[%clk 0:01:07.2]} 41. Nd5 {[%clk 0:00:19.2]} 41... Bd4
{[%clk 0:01:06.4]} 42. Nc7 {[%clk 0:00:18.8]} 42... Kf6 {[%clk 0:01:02]} 43.
Nd5+ {[%clk 0:00:18.9]} 43... Kf7 {[%clk 0:01:02.3]} 44. Nf4 {[%clk 0:00:19.1]}
44... g5 {[%clk 0:01:01.9]} 45. hxg5 {[%clk 0:00:20]} 45... hxg5 {[%clk
0:01:01.3]} 46. Nd3 {[%clk 0:00:19.8]} 46... Ke6 {[%clk 0:00:51.8]} 47. Ba8
{[%clk 0:00:19]} 47... Kd6 {[%clk 0:00:50.6]} 48. f4 {[%clk 0:00:18.1]} 48...
Bb5 {[%clk 0:00:47.6]} 49. Nf2 {[%clk 0:00:16.8]} 49... g4 {[%clk 0:00:44.5]}
50. Bb7 {[%clk 0:00:16.7]} 50... Kd7 {[%clk 0:00:34.3]} 51. Bd5 {[%clk
0:00:15.8]} 51... Ke7 {[%clk 0:00:31.3]} 52. Bb7 {[%clk 0:00:15]} 52... Kf6
{[%clk 0:00:28.4]} 53. Ba8 {[%clk 0:00:12.6]} 53... Ba4 {[%clk 0:00:28.4]} 54.
Bb7 {[%clk 0:00:12.3]} 54... Bc2 {[%clk 0:00:28.6]} 55. Ba8 {[%clk 0:00:12.1]}
55... Ke7 {[%clk 0:00:28.9]} 56. Bb7 {[%clk 0:00:12]} 56... Kd6 {[%clk
0:00:29.1]} 57. Bc8 {[%clk 0:00:10.2]} 57... Kc7 {[%clk 0:00:28.7]} 58. Be6
{[%clk 0:00:10.1]} 58... Kd6 {[%clk 0:00:24]} 59. Bc4 {[%clk 0:00:09.9]} 59...
Ba4 {[%clk 0:00:20.1]} 60. Be2 {[%clk 0:00:04.1]} 60... Bc6+ {[%clk 0:00:19.5]}
61. Kf1 {[%clk 0:00:04.6]} 61... Bd7 {[%clk 0:00:19.5]} 62. Kg2 {[%clk
0:00:04.3]} 62... Kd5 {[%clk 0:00:19.6]} 63. Bd3 {[%clk 0:00:04.5]} 63... Kc5
{[%clk 0:00:19.4]} 64. Nd1 {[%clk 0:00:04]} 64... Kb4 {[%clk 0:00:19.2]} 65. Nf2
{[%clk 0:00:04.1]} 65... Kc3 {[%clk 0:00:18.7]} 66. Be2 {[%clk 0:00:04]} 66...
Kd2 {[%clk 0:00:18.3]} 67. Ba6 {[%clk 0:00:03.4]} 67... Ke3 {[%clk 0:00:10.4]}
68. Bb7 {[%clk 0:00:02]} 68... Ke2 {[%clk 0:00:09.3]} 0-1

[Event "*** SCC Grand Prix: Titled Tuesday Blitz"]
[Site "Chess.com"]
[Date "2020.10.06"]
[Round "2"]
[White "BigAl"]
[Black "Harsha_Bharathakoti"]
[Result "0-1"]
[WhiteElo "2507"]
[BlackElo "2756"]
[TimeControl "180+1"]
[EndTime "10:19:27 PDT"]
[Termination "Harsha_Bharathakoti won on time"]

1. e4 {[%clk 0:03:00.9]} 1... c6 {[%clk 0:02:59.4]} 2. d3 {[%clk 0:03:00.6]}
2... d5 {[%clk 0:03:00.3]} 3. Nd2 {[%clk 0:03:01.1]} 3... Qc7 {[%clk 0:03:00.7]}
4. Ngf3 {[%clk 0:03:01.5]} 4... e5 {[%clk 0:03:00.2]} 5. g3 {[%clk 0:03:01.8]}
5... Nf6 {[%clk 0:02:59.5]} 6. Bg2 {[%clk 0:03:02.3]} 6... Bd6 {[%clk
0:03:00.2]} 7. O-O {[%clk 0:03:02.7]} 7... O-O {[%clk 0:03:01]} 8. exd5 {[%clk
0:02:57.8]} 8... cxd5 {[%clk 0:03:00.6]} 9. c4 {[%clk 0:02:58.2]} 9... Nc6
{[%clk 0:02:43.5]} 10. cxd5 {[%clk 0:02:50.8]} 10... Nxd5 {[%clk 0:02:43.7]} 11.
Nc4 {[%clk 0:02:50.3]} 11... Bg4 {[%clk 0:02:43.9]} 12. h3 {[%clk 0:02:43.3]}
12... Bh5 {[%clk 0:02:43.8]} 13. g4 {[%clk 0:02:37.8]} 13... Bg6 {[%clk
0:02:43.7]} 14. Nfxe5 {[%clk 0:02:32.9]} 14... Nxe5 {[%clk 0:02:36.4]} 15. Nxe5
{[%clk 0:02:27.5]} 15... Bxe5 {[%clk 0:02:34.8]} 16. Bxd5 {[%clk 0:02:27]} 16...
Rad8 {[%clk 0:02:29.5]} 17. Qf3 {[%clk 0:02:27.1]} 17... Qd7 {[%clk 0:01:33.1]}
18. Bc4 {[%clk 0:02:03.6]} 18... b5 {[%clk 0:01:26.1]} 19. Bb3 {[%clk 0:02:04]}
19... Qxd3 {[%clk 0:01:17.7]} 20. Qxd3 {[%clk 0:01:56.2]} 20... Bxd3 {[%clk
0:00:46.2]} 21. Re1 {[%clk 0:01:53.3]} 21... Rfe8 {[%clk 0:00:46]} 22. Bg5
{[%clk 0:01:48.2]} 22... Rc8 {[%clk 0:00:26.8]} 23. Re3 {[%clk 0:01:32.9]} 23...
Bc4 {[%clk 0:00:22.3]} 24. Rae1 {[%clk 0:01:27.6]} 24... f6 {[%clk 0:00:22.8]}
25. Bh4 {[%clk 0:01:15.1]} 25... Red8 {[%clk 0:00:21]} 26. Bc2 {[%clk
0:01:05.8]} 26... Bxa2 {[%clk 0:00:17.5]} 27. Bf5 {[%clk 0:01:02.4]} 27... Rb8
{[%clk 0:00:14.7]} 28. Ra3 {[%clk 0:00:57.7]} 28... Bd5 {[%clk 0:00:10.8]} 29.
Rxa7 {[%clk 0:00:57]} 29... Ra8 {[%clk 0:00:11]} 30. Rxa8 {[%clk 0:00:42.7]}
30... Rxa8 {[%clk 0:00:11.9]} 31. Rd1 {[%clk 0:00:43.3]} 31... Bf3 {[%clk
0:00:09.3]} 32. Rb1 {[%clk 0:00:34.1]} 32... g6 {[%clk 0:00:07.3]} 33. Be6+
{[%clk 0:00:33.8]} 33... Kg7 {[%clk 0:00:08]} 34. Bg3 {[%clk 0:00:29.9]} 34...
Bd4 {[%clk 0:00:08.4]} 35. Bd6 {[%clk 0:00:24.9]} 35... Re8 {[%clk 0:00:08.1]}
36. Bb3 {[%clk 0:00:22.5]} 36... Re2 {[%clk 0:00:08.5]} 37. Bg3 {[%clk
0:00:21.8]} 37... Rxb2 {[%clk 0:00:08.3]} 38. Rxb2 {[%clk 0:00:18.7]} 38... Bxb2
{[%clk 0:00:09.2]} 39. Kf1 {[%clk 0:00:18.3]} 39... Bc3 {[%clk 0:00:08.3]} 40.
Bd6 {[%clk 0:00:15.1]} 40... b4 {[%clk 0:00:08.7]} 41. Bc4 {[%clk 0:00:13.6]}
41... f5 {[%clk 0:00:06.8]} 42. g5 {[%clk 0:00:13.6]} 42... h6 {[%clk
0:00:05.4]} 43. h4 {[%clk 0:00:14.1]} 43... hxg5 {[%clk 0:00:04.2]} 44. hxg5
{[%clk 0:00:14.5]} 44... Bd2 {[%clk 0:00:05]} 45. Be5+ {[%clk 0:00:13.9]} 45...
Kh7 {[%clk 0:00:05.1]} 46. Bf6 {[%clk 0:00:13.6]} 46... Bd1 {[%clk 0:00:05.4]}
47. Be2 {[%clk 0:00:11.6]} 47... Bc2 {[%clk 0:00:05.1]} 48. Bc4 {[%clk
0:00:07.8]} 48... Bc1 {[%clk 0:00:05.6]} 49. Ke1 {[%clk 0:00:06.1]} 49... b3
{[%clk 0:00:06.2]} 50. Bxb3 {[%clk 0:00:06.5]} 50... Bxb3 {[%clk 0:00:06.5]} 51.
Ke2 {[%clk 0:00:07.4]} 51... Bc4+ {[%clk 0:00:06.9]} 52. Kd1 {[%clk 0:00:07.2]}
52... Bf4 {[%clk 0:00:06.8]} 53. Kc2 {[%clk 0:00:06.5]} 53... Kg8 {[%clk
0:00:07.4]} 54. Kc3 {[%clk 0:00:06.9]} 54... Be2 {[%clk 0:00:06.3]} 55. Kd4
{[%clk 0:00:07]} 55... Bf3 {[%clk 0:00:07]} 56. Kc5 {[%clk 0:00:05.6]} 56... Kf7
{[%clk 0:00:07.6]} 57. Kd4 {[%clk 0:00:06.3]} 57... Ke6 {[%clk 0:00:08.1]} 58.
Bd8 {[%clk 0:00:06.6]} 58... Be5+ {[%clk 0:00:08.2]} 59. Ke3 {[%clk 0:00:06.2]}
59... Bc6 {[%clk 0:00:09.1]} 60. Bf6 {[%clk 0:00:05.8]} 60... Bd6 {[%clk
0:00:10]} 61. Kd3 {[%clk 0:00:06]} 61... Be5 {[%clk 0:00:09.8]} 62. Bd8 {[%clk
0:00:06.3]} 62... f4 {[%clk 0:00:10.4]} 63. Ke2 {[%clk 0:00:06.1]} 63... Kf5
{[%clk 0:00:10.7]} 64. Kd3 {[%clk 0:00:04.9]} 64... f3 {[%clk 0:00:11.6]} 65.
Ke3 {[%clk 0:00:05]} 65... Be4 {[%clk 0:00:12.5]} 66. Bf6 {[%clk 0:00:04.5]}
66... Bf4+ {[%clk 0:00:11.7]} 67. Kd4 {[%clk 0:00:04.3]} 67... Bb7 {[%clk
0:00:12.3]} 68. Be7 {[%clk 0:00:03.7]} 68... Bxg5 {[%clk 0:00:13.2]} 69. Bd6
{[%clk 0:00:04.3]} 69... Bf6+ {[%clk 0:00:13.7]} 70. Ke3 {[%clk 0:00:04.7]}
70... g5 {[%clk 0:00:14.6]} 71. Bg3 {[%clk 0:00:04.1]} 71... g4 {[%clk
0:00:15.5]} 72. Kd3 {[%clk 0:00:04.6]} 72... Be5 {[%clk 0:00:16.2]} 73. Bh4
{[%clk 0:00:04.2]} 73... Ba6+ {[%clk 0:00:16.8]} 74. Ke3 {[%clk 0:00:04.5]}
74... Bf4+ {[%clk 0:00:17.1]} 75. Kd4 {[%clk 0:00:04.5]} 75... g3 {[%clk
0:00:17.2]} 76. Bxg3 {[%clk 0:00:04.7]} 76... Bxg3 {[%clk 0:00:17.4]} 77. Ke3
{[%clk 0:00:05.6]} 77... Kg4 {[%clk 0:00:15.7]} 0-1

[Event "*** SCC Grand Prix: Titled Tuesday Blitz"]
[Site "Chess.com"]
[Date "2020.10.06"]
[Round "2"]
[White "Bastiandash"]
[Black "Gurvich_Vitaly"]
[Result "1/2-1/2"]
[WhiteElo "2279"]
[BlackElo "2641"]
[TimeControl "180+1"]
[EndTime "10:19:33 PDT"]
[Termination "Game drawn by repetition"]

1. b3 {[%clk 0:03:00.9]} 1... e5 {[%clk 0:02:59.3]} 2. Bb2 {[%clk 0:03:01.8]}
2... Nc6 {[%clk 0:02:58.7]} 3. e3 {[%clk 0:03:02.1]} 3... d5 {[%clk 0:02:58]} 4.
Nf3 {[%clk 0:03:01.8]} 4... e4 {[%clk 0:02:57.8]} 5. Nd4 {[%clk 0:03:00.5]} 5...
Nf6 {[%clk 0:02:58.4]} 6. d3 {[%clk 0:02:59.4]} 6... Bd6 {[%clk 0:02:57.5]} 7.
c4 {[%clk 0:02:56]} 7... exd3 {[%clk 0:02:42.1]} 8. Bxd3 {[%clk 0:02:51.3]} 8...
Ne5 {[%clk 0:02:41.3]} 9. Be2 {[%clk 0:02:48]} 9... dxc4 {[%clk 0:02:37]} 10.
bxc4 {[%clk 0:02:29.7]} 10... Bb4+ {[%clk 0:02:36]} 11. Nc3 {[%clk 0:02:28.9]}
11... c5 {[%clk 0:02:33.9]} 12. Nb5 {[%clk 0:02:20.6]} 12... O-O {[%clk
0:02:29.8]} 13. O-O {[%clk 0:02:14.2]} 13... a6 {[%clk 0:02:27.2]} 14. Qxd8
{[%clk 0:02:01.3]} 14... Rxd8 {[%clk 0:02:25.8]} 15. Nc7 {[%clk 0:02:01.8]}
15... Ra7 {[%clk 0:02:25.6]} 16. N3d5 {[%clk 0:01:37.6]} 16... Nxd5 {[%clk
0:02:22.7]} 17. Nxd5 {[%clk 0:01:38.5]} 17... Nc6 {[%clk 0:02:21.6]} 18. Rfd1
{[%clk 0:01:30.1]} 18... Rf8 {[%clk 0:02:17.9]} 19. h3 {[%clk 0:01:12.8]} 19...
Bf5 {[%clk 0:02:08.8]} 20. Bd3 {[%clk 0:01:10.5]} 20... Be6 {[%clk 0:02:07.8]}
21. f4 {[%clk 0:01:04.8]} 21... f5 {[%clk 0:02:05.2]} 22. Be2 {[%clk 0:00:58.5]}
22... Ba5 {[%clk 0:01:59.4]} 23. g4 {[%clk 0:00:40]} 23... Raa8 {[%clk
0:01:56.1]} 24. Bf3 {[%clk 0:00:34.1]} 24... Rae8 {[%clk 0:01:53.9]} 25. Kf2
{[%clk 0:00:33]} 25... Kf7 {[%clk 0:01:39.3]} 26. Rg1 {[%clk 0:00:29.3]} 26...
g6 {[%clk 0:01:39]} 27. Rad1 {[%clk 0:00:14.6]} 27... Bd8 {[%clk 0:01:36.8]} 28.
g5 {[%clk 0:00:10.7]} 28... Be7 {[%clk 0:01:32.2]} 29. h4 {[%clk 0:00:07.2]}
29... Rd8 {[%clk 0:00:59.5]} 30. h5 {[%clk 0:00:07.4]} 30... Nb4 {[%clk
0:00:58.5]} 31. Nxb4 {[%clk 0:00:06.3]} 31... cxb4 {[%clk 0:00:58.1]} 32. hxg6+
{[%clk 0:00:06.7]} 32... hxg6 {[%clk 0:00:57.9]} 33. Rh1 {[%clk 0:00:04.5]}
33... Rxd1 {[%clk 0:00:57.2]} 34. Bxd1 {[%clk 0:00:04.1]} 34... Rd8 {[%clk
0:00:54.7]} 35. Bd4 {[%clk 0:00:03.9]} 35... Bxc4 {[%clk 0:00:52.9]} 36. Rh7+
{[%clk 0:00:03.7]} 36... Ke6 {[%clk 0:00:49.3]} 37. Bf3 {[%clk 0:00:02.9]} 37...
Bxa2 {[%clk 0:00:43.8]} 38. Rg7 {[%clk 0:00:03]} 38... Rxd4 {[%clk 0:00:31.5]}
39. exd4 {[%clk 0:00:03.9]} 39... b3 {[%clk 0:00:31.8]} 40. Rxg6+ {[%clk
0:00:04.2]} 40... Kf7 {[%clk 0:00:28.9]} 41. Rb6 {[%clk 0:00:05.1]} 41... Ba3
{[%clk 0:00:27.5]} 42. Bd5+ {[%clk 0:00:05.3]} 42... Kg7 {[%clk 0:00:27.3]} 43.
Bxb3 {[%clk 0:00:06.2]} 43... Bb1 {[%clk 0:00:24.8]} 44. Rxb7+ {[%clk
0:00:05.7]} 44... Kf8 {[%clk 0:00:22.9]} 45. Be6 {[%clk 0:00:04.6]} 45... Be4
{[%clk 0:00:21.1]} 46. Ra7 {[%clk 0:00:03.9]} 46... Bb2 {[%clk 0:00:16.9]} 47.
Rxa6 {[%clk 0:00:04.4]} 47... Bxd4+ {[%clk 0:00:16.8]} 48. Kg3 {[%clk
0:00:05.2]} 48... Kg7 {[%clk 0:00:17]} 49. Bc4 {[%clk 0:00:04.3]} 49... Bc3
{[%clk 0:00:16.4]} 50. g6 {[%clk 0:00:04.2]} 50... Be1+ {[%clk 0:00:15.8]} 51.
Kh2 {[%clk 0:00:03.9]} 51... Bd2 {[%clk 0:00:15.2]} 52. Kg3 {[%clk 0:00:04.7]}
52... Be1+ {[%clk 0:00:15.2]} 53. Kh3 {[%clk 0:00:05.4]} 53... Bf2 {[%clk
0:00:13.6]} 54. Re6 {[%clk 0:00:05.6]} 54... Be3 {[%clk 0:00:12.6]} 55. Kh4
{[%clk 0:00:04.6]} 55... Bxf4 {[%clk 0:00:12.3]} 56. Ra6 {[%clk 0:00:05.2]}
56... Be3 {[%clk 0:00:12]} 57. Re6 {[%clk 0:00:04.7]} 57... Bf2+ {[%clk
0:00:11.6]} 58. Kh3 {[%clk 0:00:04.8]} 58... Bc5 {[%clk 0:00:10.7]} 59. Ra6
{[%clk 0:00:05.1]} 59... Be3 {[%clk 0:00:10.4]} 60. Re6 {[%clk 0:00:04.8]} 60...
Bf2 {[%clk 0:00:09.8]} 61. Ra6 {[%clk 0:00:05.3]} 61... f4 {[%clk 0:00:09.9]}
62. Re6 {[%clk 0:00:05]} 62... Bf5+ {[%clk 0:00:09.6]} 63. Kg2 {[%clk
0:00:05.9]} 63... Bxe6 {[%clk 0:00:09.6]} 64. Bxe6 {[%clk 0:00:06.5]} 64... Bd4
{[%clk 0:00:09.3]} 65. Bf5 {[%clk 0:00:06.4]} 65... Kf6 {[%clk 0:00:09.6]} 66.
Bd3 {[%clk 0:00:07.1]} 66... Kg5 {[%clk 0:00:09.7]} 67. Kf3 {[%clk 0:00:08]}
67... Bg7 {[%clk 0:00:09.4]} 68. Be4 {[%clk 0:00:08.6]} 68... Kf6 {[%clk
0:00:08.5]} 69. Kxf4 {[%clk 0:00:08.6]} 69... Ke7 {[%clk 0:00:09.4]} 70. Kg4
{[%clk 0:00:09.1]} 70... Kf8 {[%clk 0:00:10.3]} 71. Kf5 {[%clk 0:00:10]} 71...
Kg8 {[%clk 0:00:10.3]} 72. Bd5+ {[%clk 0:00:10.9]} 72... Kh8 {[%clk 0:00:11.2]}
73. Bf7 {[%clk 0:00:11.8]} 73... Bc3 {[%clk 0:00:08.9]} 74. Ke6 {[%clk
0:00:12.7]} 74... Bg7 {[%clk 0:00:09.4]} 75. Kd7 {[%clk 0:00:13.6]} 75... Bb2
{[%clk 0:00:09.7]} 76. Kc6 {[%clk 0:00:14.5]} 76... Bg7 {[%clk 0:00:10.5]} 77.
Kb5 {[%clk 0:00:15.4]} 77... Bf6 {[%clk 0:00:10.1]} 78. Kc4 {[%clk 0:00:16.3]}
78... Kg7 {[%clk 0:00:11]} 79. Kd3 {[%clk 0:00:17.2]} 79... Bd8 {[%clk
0:00:11.1]} 80. Ke2 {[%clk 0:00:18.1]} 80... Bh4 {[%clk 0:00:11.2]} 81. Kf1
{[%clk 0:00:19]} 81... Bf6 {[%clk 0:00:11.7]} 82. Kg2 {[%clk 0:00:19.9]} 82...
Be7 {[%clk 0:00:12.6]} 83. Kf3 {[%clk 0:00:20.8]} 83... Bf6 {[%clk 0:00:13.5]}
84. Ke4 {[%clk 0:00:21.4]} 84... Be7 {[%clk 0:00:14.4]} 85. Kf5 {[%clk
0:00:22.3]} 85... Bf6 {[%clk 0:00:13.5]} 86. Ke6 {[%clk 0:00:23.2]} 86... Bd4
{[%clk 0:00:13.2]} 87. Ke7 {[%clk 0:00:24.1]} 87... Bb2 {[%clk 0:00:13.9]} 88.
Kd6 {[%clk 0:00:24.6]} 88... Ba1 {[%clk 0:00:14.7]} 89. Kd5 {[%clk 0:00:24.6]}
89... Bf6 {[%clk 0:00:15.1]} 90. Ke4 {[%clk 0:00:24.5]} 90... Bh4 {[%clk
0:00:15.5]} 91. Kd3 {[%clk 0:00:25.4]} 91... Bf6 {[%clk 0:00:16.2]} 92. Ke4
{[%clk 0:00:26.3]} 1/2-1/2

[Event "*** SCC Grand Prix: Titled Tuesday Blitz"]
[Site "Chess.com"]
[Date "2020.10.06"]
[Round "2"]
[White "albi1999"]
[Black "mishanick"]
[Result "1/2-1/2"]
[WhiteElo "2613"]
[BlackElo "2997"]
[TimeControl "180+1"]
[EndTime "10:19:40 PDT"]
[Termination "Game drawn by repetition"]

1. d4 {[%clk 0:03:00.9]} 1... Nf6 {[%clk 0:02:57]} 2. c4 {[%clk 0:03:00.4]} 2...
e6 {[%clk 0:02:57]} 3. Nf3 {[%clk 0:02:58.4]} 3... d5 {[%clk 0:02:56.9]} 4. g3
{[%clk 0:02:56.3]} 4... Bb4+ {[%clk 0:02:56.8]} 5. Bd2 {[%clk 0:02:55.3]} 5...
Be7 {[%clk 0:02:56.9]} 6. Bg2 {[%clk 0:02:54.2]} 6... O-O {[%clk 0:02:57.4]} 7.
O-O {[%clk 0:02:54.9]} 7... Nbd7 {[%clk 0:02:57.4]} 8. Qc2 {[%clk 0:02:54.7]}
8... c6 {[%clk 0:02:57.7]} 9. Rd1 {[%clk 0:02:53.2]} 9... b6 {[%clk 0:02:57.8]}
10. b3 {[%clk 0:02:50.4]} 10... a5 {[%clk 0:02:57.8]} 11. Bc3 {[%clk 0:02:47.7]}
11... Ba6 {[%clk 0:02:55.3]} 12. Nbd2 {[%clk 0:02:45.6]} 12... c5 {[%clk
0:02:55.9]} 13. Ne5 {[%clk 0:02:39.7]} 13... cxd4 {[%clk 0:02:48.3]} 14. Bxd4
{[%clk 0:02:40.6]} 14... Rc8 {[%clk 0:02:48.7]} 15. Qb2 {[%clk 0:02:34.7]} 15...
Nc5 {[%clk 0:02:14.4]} 16. Rac1 {[%clk 0:02:23.4]} 16... Qc7 {[%clk 0:02:12]}
17. cxd5 {[%clk 0:02:16.6]} 17... Nxd5 {[%clk 0:02:11.2]} 18. Ndc4 {[%clk
0:02:14.3]} 18... Rfd8 {[%clk 0:02:09.4]} 19. Rd2 {[%clk 0:02:01.4]} 19... b5
{[%clk 0:01:59.3]} 20. Bxd5 {[%clk 0:01:41.4]} 20... Rxd5 {[%clk 0:01:43.5]} 21.
Ne3 {[%clk 0:01:40.2]} 21... Rdd8 {[%clk 0:01:43.5]} 22. Rdc2 {[%clk 0:01:23.1]}
22... Qb6 {[%clk 0:00:59.8]} 23. b4 {[%clk 0:00:49.2]} 23... axb4 {[%clk
0:00:55.2]} 24. Qxb4 {[%clk 0:00:48.2]} 24... f6 {[%clk 0:00:44.5]} 25. Bxc5
{[%clk 0:00:37.5]} 25... Rxc5 {[%clk 0:00:40.2]} 26. Rxc5 {[%clk 0:00:34.7]}
26... fxe5 {[%clk 0:00:40]} 27. Rc6 {[%clk 0:00:26.1]} 27... Qxc6 {[%clk
0:00:32.8]} 28. Rxc6 {[%clk 0:00:23.3]} 28... Bxb4 {[%clk 0:00:33.3]} 29. Rxa6
{[%clk 0:00:23.5]} 29... Kf7 {[%clk 0:00:25.6]} 30. Rb6 {[%clk 0:00:23.1]} 30...
Bc5 {[%clk 0:00:22.9]} 31. Rxb5 {[%clk 0:00:21.2]} 31... Bxe3 {[%clk 0:00:22.9]}
32. fxe3 {[%clk 0:00:22.1]} 32... Ra8 {[%clk 0:00:23.6]} 33. Rb2 {[%clk
0:00:18.7]} 33... Kf6 {[%clk 0:00:23.3]} 34. Kf2 {[%clk 0:00:18.9]} 34... Ra3
{[%clk 0:00:23.5]} 35. h3 {[%clk 0:00:16.8]} 35... h5 {[%clk 0:00:23.8]} 36. Rc2
{[%clk 0:00:16.4]} 36... Kf5 {[%clk 0:00:23.9]} 37. Kf3 {[%clk 0:00:16.9]} 37...
g5 {[%clk 0:00:23.6]} 38. g4+ {[%clk 0:00:17.1]} 38... hxg4+ {[%clk 0:00:23]}
39. hxg4+ {[%clk 0:00:18]} 39... Kf6 {[%clk 0:00:23.9]} 40. Rb2 {[%clk
0:00:18.1]} 40... Ra4 {[%clk 0:00:24.1]} 41. e4 {[%clk 0:00:17.3]} 41... Ra3+
{[%clk 0:00:15.9]} 42. e3 {[%clk 0:00:15.9]} 42... Ra4 {[%clk 0:00:16.6]} 43.
Rd2 {[%clk 0:00:14]} 43... Ke7 {[%clk 0:00:17]} 44. Rc2 {[%clk 0:00:13.1]} 44...
Kd6 {[%clk 0:00:15.2]} 45. Rh2 {[%clk 0:00:12.6]} 45... Ke7 {[%clk 0:00:14.8]}
46. Rh6 {[%clk 0:00:12.3]} 46... Kf7 {[%clk 0:00:14.6]} 47. Rh2 {[%clk
0:00:10.7]} 47... Ra8 {[%clk 0:00:13.6]} 48. Rb2 {[%clk 0:00:10.7]} 48... Kf6
{[%clk 0:00:13]} 49. Kg3 {[%clk 0:00:11.1]} 49... Ra4 {[%clk 0:00:13.2]} 50.
Rf2+ {[%clk 0:00:11.1]} 50... Ke7 {[%clk 0:00:11.7]} 51. Kf3 {[%clk 0:00:12]}
51... Ra8 {[%clk 0:00:09.3]} 52. Rb2 {[%clk 0:00:11.9]} 52... Kf6 {[%clk
0:00:09]} 53. Rc2 {[%clk 0:00:11.9]} 53... Ra3 {[%clk 0:00:08.7]} 54. Rd2 {[%clk
0:00:11.8]} 54... Rc3 {[%clk 0:00:08.8]} 55. Rb2 {[%clk 0:00:11.8]} 55... Rc1
{[%clk 0:00:09]} 56. a4 {[%clk 0:00:11.2]} 56... Ra1 {[%clk 0:00:09.5]} 57. Rb4
{[%clk 0:00:11]} 57... Ra2 {[%clk 0:00:10.1]} 58. Rc4 {[%clk 0:00:10.8]} 58...
Ke7 {[%clk 0:00:10.4]} 59. Rb4 {[%clk 0:00:11.3]} 59... Kd6 {[%clk 0:00:10.8]}
60. Rb7 {[%clk 0:00:11.2]} 60... Rxa4 {[%clk 0:00:08.3]} 61. Rg7 {[%clk
0:00:11.8]} 61... Ra1 {[%clk 0:00:08.6]} 62. Rxg5 {[%clk 0:00:12]} 62... Rf1+
{[%clk 0:00:09.2]} 63. Ke2 {[%clk 0:00:12.1]} 63... Rg1 {[%clk 0:00:09.5]} 64.
Rg7 {[%clk 0:00:12.7]} 64... Rg2+ {[%clk 0:00:08.8]} 65. Kf3 {[%clk 0:00:12.9]}
65... Rg1 {[%clk 0:00:09.4]} 66. Kf2 {[%clk 0:00:13.5]} 66... Ra1 {[%clk
0:00:08.7]} 67. g5 {[%clk 0:00:14.1]} 67... Rh1 {[%clk 0:00:05.3]} 68. Kg2
{[%clk 0:00:13.7]} 68... Re1 {[%clk 0:00:05.5]} 69. Kf3 {[%clk 0:00:13.9]} 69...
Rg1 {[%clk 0:00:05.4]} 70. g6 {[%clk 0:00:13.7]} 70... Kc6 {[%clk 0:00:05.2]}
71. Rg8 {[%clk 0:00:12.9]} 71... Kd6 {[%clk 0:00:05.8]} 72. Kf2 {[%clk
0:00:13.2]} 72... Rg5 {[%clk 0:00:05.3]} 73. Ke2 {[%clk 0:00:13.6]} 73... Ke7
{[%clk 0:00:05.8]} 74. Kf3 {[%clk 0:00:10.1]} 74... Kf6 {[%clk 0:00:05.7]} 75.
g7 {[%clk 0:00:09.2]} 75... Rxg7 {[%clk 0:00:04.9]} 76. Rxg7 {[%clk 0:00:10.1]}
76... Kxg7 {[%clk 0:00:05.2]} 77. Kg4 {[%clk 0:00:11]} 77... Kg6 {[%clk
0:00:05.8]} 78. Kh4 {[%clk 0:00:11.4]} 78... Kh6 {[%clk 0:00:06.7]} 79. Kg4
{[%clk 0:00:11.9]} 79... Kg6 {[%clk 0:00:07.6]} 80. Kh4 {[%clk 0:00:12.5]} 80...
Kh6 {[%clk 0:00:08.5]} 81. Kg4 {[%clk 0:00:13.1]} 81... Kg6 {[%clk 0:00:09.4]}
1/2-1/2